[Event "Titled Tuesday Blitz February 21 Late 2023"]
[White "Bhavikatti, Neil"]
[Black "Solon, Nathan"]
[WhiteFideId "30935024"]
[BlackFideId "2017229"]
[WhiteElo "2051"]
[BlackElo "2306"]
[Result "1-0"]
[Round "02"]
[TimeControl "180+2"]
[Date "2023.02.21"]
[WhiteClock "0:02:24"]
[BlackClock "0:02:04"]

1. d4 {[%clk 0:03:00]}  Nf6 {[%clk 0:02:58]} 2. c4 {[%clk 0:03:01]}  c5 {[%clk 0:02:57]} 3. d5 {[%clk 0:03:00]}  b5 {[%clk 0:02:58]} 4. f3 {[%clk 0:02:57]}  bxc4 {[%clk 0:02:51]} 5. e4 {[%clk 0:02:57]}  e6 {[%clk 0:02:51]} 6. Nc3 {[%clk 0:02:52]}  exd5 {[%clk 0:02:49]} 7. Nxd5 {[%clk 0:02:52]}  Nxd5 {[%clk 0:02:36]} 8. Qxd5 {[%clk 0:02:51]}  Nc6 {[%clk 0:02:37]} 9. Bxc4 {[%clk 0:02:50]}  Qf6 {[%clk 0:02:37]} 10. Bg5 {[%clk 0:02:33]}  Qg6 {[%clk 0:02:26]} 11. Ne2 {[%clk 0:02:31]}  Rb8 {[%clk 0:02:04]} 12. Nf4 {[%clk 0:02:24]} 1-0


[Site "https://www.chess.com"]

[Event "Titled Tuesday Blitz February 21 Late 2023"]
[White "Bjelobrk, Igor"]
[Black "Buganca, Luiz Henrique Da Silva"]
[WhiteFideId "4300726"]
[BlackFideId "2182289"]
[WhiteElo "2403"]
[BlackElo "1920"]
[Result "1-0"]
[Round "02"]
[TimeControl "180+2"]
[Date "2023.02.21"]
[WhiteClock "0:00:54"]
[BlackClock "0:00:31"]

1. d4 {[%clk 0:03:00]}  Nf6 {[%clk 0:02:54]} 2. c4 {[%clk 0:03:00]}  e6 {[%clk 0:02:55]} 3. g3 {[%clk 0:03:00]}  c5 {[%clk 0:02:55]} 4. d5 {[%clk 0:02:59]}  exd5 {[%clk 0:02:55]} 5. cxd5 {[%clk 0:02:58]}  d6 {[%clk 0:02:56]} 6. Nc3 {[%clk 0:02:55]}  g6 {[%clk 0:02:56]} 7. Bg2 {[%clk 0:02:54]}  Bg7 {[%clk 0:02:57]} 8. Nf3 {[%clk 0:02:53]}  O-O {[%clk 0:02:58]} 9. O-O {[%clk 0:02:45]}  Re8 {[%clk 0:02:55]} 10. Nd2 {[%clk 0:02:41]}  Nbd7 {[%clk 0:02:54]} 11. a4 {[%clk 0:02:37]}  b6 {[%clk 0:02:51]} 12. h3 {[%clk 0:02:35]}  Ba6 {[%clk 0:02:50]} 13. Nb5 {[%clk 0:02:33]}  Qb8 {[%clk 0:02:39]} 14. Nc4 {[%clk 0:02:27]}  Bf8 {[%clk 0:02:37]} 15. Bf4 {[%clk 0:02:22]}  Bxb5 {[%clk 0:02:31]} 16. axb5 {[%clk 0:02:22]}  Qc7 {[%clk 0:02:25]} 17. Ra3 {[%clk 0:02:15]}  Nh5 {[%clk 0:02:05]} 18. Bd2 {[%clk 0:02:14]}  Ne5 {[%clk 0:02:05]} 19. Nxe5 {[%clk 0:02:14]}  Rxe5 {[%clk 0:02:04]} 20. Bc3 {[%clk 0:02:12]}  Ree8 {[%clk 0:02:04]} 21. Qd2 {[%clk 0:02:10]}  Qe7 {[%clk 0:02:00]} 22. e3 {[%clk 0:02:08]}  Bg7 {[%clk 0:01:57]} 23. Rfa1 {[%clk 0:02:06]}  Qd7 {[%clk 0:01:53]} 24. Bf1 {[%clk 0:02:01]}  Nf6 {[%clk 0:01:49]} 25. Qd1 {[%clk 0:01:41]}  Ne4 {[%clk 0:01:45]} 26. Bxg7 {[%clk 0:01:39]}  Kxg7 {[%clk 0:01:46]} 27. R1a2 {[%clk 0:01:25]}  Re7 {[%clk 0:01:44]} 28. Qa1 {[%clk 0:01:24]}  Ng5 {[%clk 0:01:29]} 29. b4+ {[%clk 0:01:22]}  f6 {[%clk 0:01:27]} 30. bxc5 {[%clk 0:01:22]}  dxc5 {[%clk 0:01:28]} 31. Ra6 {[%clk 0:01:09]}  Qxd5 {[%clk 0:01:19]} 32. Bg2 {[%clk 0:01:07]}  Nf3+ {[%clk 0:01:14]} 33. Bxf3 {[%clk 0:01:07]}  Qxf3 {[%clk 0:01:14]} 34. Rxa7 {[%clk 0:01:07]}  Raxa7 {[%clk 0:01:04]} 35. Rxa7 {[%clk 0:01:07]}  Qe4 {[%clk 0:01:02]} 36. Qa6 {[%clk 0:01:02]}  Qb1+ {[%clk 0:00:40]} 37. Kh2 {[%clk 0:01:02]}  Rxa7 {[%clk 0:00:34]} 38. Qxa7+ {[%clk 0:01:03]}  Kh6 {[%clk 0:00:34]} 39. Qxb6 {[%clk 0:01:03]}  Qf1 {[%clk 0:00:35]} 40. Qxf6 {[%clk 0:01:01]}  Qxb5 {[%clk 0:00:34]} 41. Qf8+ {[%clk 0:00:59]}  Kh5 {[%clk 0:00:31]} 42. g4+ {[%clk 0:00:55]}  Kg5 {[%clk 0:00:31]} 43. Qf4+ {[%clk 0:00:54]}  Kh4 {[%clk 0:00:31]} 44. Qh6# {[%clk 0:00:54]} 1-0


[Site "https://www.chess.com"]

[Event "Titled Tuesday Blitz February 21 Late 2023"]
[White "Herbst, Richard"]
[Black "Perske, Thore"]
[WhiteFideId "2041251"]
[BlackFideId "12902195"]
[WhiteElo "2120"]
[BlackElo "2448"]
[Result "0-1"]
[Round "02"]
[TimeControl "180+2"]
[Date "2023.02.21"]
[WhiteClock "0:01:04"]
[BlackClock "0:01:30"]

1. e4 {[%clk 0:03:00]}  e6 {[%clk 0:02:58]} 2. d4 {[%clk 0:02:59]}  d5 {[%clk 0:02:58]} 3. Nd2 {[%clk 0:02:59]}  c5 {[%clk 0:02:58]} 4. exd5 {[%clk 0:02:57]}  exd5 {[%clk 0:02:59]} 5. Ngf3 {[%clk 0:02:50]}  a6 {[%clk 0:02:59]} 6. Be2 {[%clk 0:02:44]}  Nf6 {[%clk 0:02:59]} 7. O-O {[%clk 0:02:44]}  Be7 {[%clk 0:02:59]} 8. dxc5 {[%clk 0:02:44]}  Bxc5 {[%clk 0:03:00]} 9. Nb3 {[%clk 0:02:44]}  Bb6 {[%clk 0:03:00]} 10. c3 {[%clk 0:02:40]}  O-O {[%clk 0:03:00]} 11. Nbd4 {[%clk 0:02:32]}  Nc6 {[%clk 0:02:59]} 12. h3 {[%clk 0:02:30]}  Re8 {[%clk 0:02:59]} 13. Be3 {[%clk 0:02:29]}  Bc7 {[%clk 0:02:58]} 14. Nb3 {[%clk 0:02:21]}  Ne4 {[%clk 0:02:48]} 15. Qd3 {[%clk 0:02:11]}  Bf5 {[%clk 0:02:42]} 16. Nbd4 {[%clk 0:02:04]}  Bg6 {[%clk 0:02:34]} 17. Qd1 {[%clk 0:01:58]}  Qd6 {[%clk 0:02:17]} 18. Qc1 {[%clk 0:01:43]}  Rac8 {[%clk 0:02:12]} 19. Rd1 {[%clk 0:01:36]}  Na5 {[%clk 0:02:10]} 20. b3 {[%clk 0:01:27]}  Bb6 {[%clk 0:01:53]} 21. c4 {[%clk 0:01:25]}  dxc4 {[%clk 0:01:49]} 22. Nf5 {[%clk 0:01:21]}  Qf6 {[%clk 0:01:33]} 23. Bxb6 {[%clk 0:01:08]}  Qxb6 {[%clk 0:01:34]} 24. b4 {[%clk 0:01:04]}  Qxf2+ {[%clk 0:01:30]} 0-1


[Site "https://www.chess.com"]

[Event "Titled Tuesday Blitz February 21 Late 2023"]
[White "Leonte, Sebastian-Marian"]
[Black "Sokolovsky, Yahli"]
[WhiteFideId "1268767"]
[BlackFideId "2820242"]
[WhiteElo "1279"]
[BlackElo "2461"]
[Result "0-1"]
[Round "02"]
[TimeControl "180+2"]
[Date "2023.02.21"]
[WhiteClock "0:00:09"]
[BlackClock "0:00:16"]

1. e4 {[%clk 0:03:00]}  c5 {[%clk 0:02:59]} 2. Nf3 {[%clk 0:02:59]}  d6 {[%clk 0:03:00]} 3. d4 {[%clk 0:02:59]}  cxd4 {[%clk 0:03:01]} 4. Nxd4 {[%clk 0:03:00]}  Nf6 {[%clk 0:03:01]} 5. Nc3 {[%clk 0:03:00]}  a6 {[%clk 0:03:01]} 6. f3 {[%clk 0:03:00]}  Nc6 {[%clk 0:02:50]} 7. Be3 {[%clk 0:02:53]}  e5 {[%clk 0:02:47]} 8. Nb3 {[%clk 0:02:53]}  Be6 {[%clk 0:02:47]} 9. Qd2 {[%clk 0:02:49]}  Rc8 {[%clk 0:02:46]} 10. O-O-O {[%clk 0:02:46]}  Nb4 {[%clk 0:02:06]} 11. Kb1 {[%clk 0:02:41]}  d5 {[%clk 0:02:00]} 12. a3 {[%clk 0:02:24]}  d4 {[%clk 0:01:40]} 13. axb4 {[%clk 0:02:21]}  Bxb4 {[%clk 0:00:46]} 14. Qf2 {[%clk 0:01:56]}  Bxc3 {[%clk 0:00:33]} 15. bxc3 {[%clk 0:01:53]}  Bxb3 {[%clk 0:00:32]} 16. cxb3 {[%clk 0:01:49]}  Rxc3 {[%clk 0:00:33]} 17. Bc1 {[%clk 0:01:21]}  Rxb3+ {[%clk 0:00:33]} 18. Bb2 {[%clk 0:01:20]}  O-O {[%clk 0:00:30]} 19. Bc4 {[%clk 0:01:20]}  Rb4 {[%clk 0:00:30]} 20. Rc1 {[%clk 0:01:07]}  Qa5 {[%clk 0:00:26]} 21. g4 {[%clk 0:00:59]}  Nd7 {[%clk 0:00:26]} 22. f4 {[%clk 0:00:24]}  Nc5 {[%clk 0:00:15]} 23. fxe5 {[%clk 0:00:21]}  Na4 {[%clk 0:00:15]} 24. Bxf7+ {[%clk 0:00:14]}  Kh8 {[%clk 0:00:16]} 25. Rc2 {[%clk 0:00:10]}  d3 {[%clk 0:00:16]} 26. Rd2 {[%clk 0:00:09]}  Nc3+ {[%clk 0:00:16]} 0-1


[Site "https://www.chess.com"]

[Event "Titled Tuesday Blitz February 21 Late 2023"]
[White "Ozer, Omer Faruk"]
[Black "Matsuura, Frederico"]
[WhiteFideId "6354564"]
[BlackFideId "2107848"]
[WhiteElo "2360"]
[BlackElo "2244"]
[Result "0-1"]
[Round "02"]
[TimeControl "180+2"]
[Date "2023.02.21"]
[WhiteClock "0:00:05"]
[BlackClock "0:00:16"]

1. e4 {[%clk 0:03:00]}  e6 {[%clk 0:02:50]} 2. d4 {[%clk 0:02:58]}  d5 {[%clk 0:02:49]} 3. Nc3 {[%clk 0:02:58]}  Bb4 {[%clk 0:02:49]} 4. Ne2 {[%clk 0:02:57]}  Nf6 {[%clk 0:02:47]} 5. e5 {[%clk 0:02:57]}  Nfd7 {[%clk 0:02:47]} 6. Nf4 {[%clk 0:02:35]}  b6 {[%clk 0:02:46]} 7. Qg4 {[%clk 0:02:31]}  g6 {[%clk 0:02:45]} 8. Bd2 {[%clk 0:02:14]}  Ba6 {[%clk 0:02:42]} 9. Bxa6 {[%clk 0:01:52]}  Nxa6 {[%clk 0:02:42]} 10. O-O {[%clk 0:01:53]}  Be7 {[%clk 0:02:29]} 11. Nce2 {[%clk 0:01:48]}  c5 {[%clk 0:02:29]} 12. c3 {[%clk 0:01:48]}  Rc8 {[%clk 0:02:23]} 13. g3 {[%clk 0:01:40]}  Nab8 {[%clk 0:02:14]} 14. h4 {[%clk 0:01:39]}  h5 {[%clk 0:02:13]} 15. Qf3 {[%clk 0:01:35]}  Nc6 {[%clk 0:02:10]} 16. Rfe1 {[%clk 0:01:22]}  b5 {[%clk 0:02:01]} 17. Rad1 {[%clk 0:01:09]}  Qb6 {[%clk 0:01:54]} 18. Qd3 {[%clk 0:01:08]}  Rg8 {[%clk 0:01:27]} 19. Be3 {[%clk 0:00:58]}  a5 {[%clk 0:01:09]} 20. Nxd5 {[%clk 0:00:52]}  exd5 {[%clk 0:00:59]} 21. Nf4 {[%clk 0:00:52]}  cxd4 {[%clk 0:00:41]} 22. Bxd4 {[%clk 0:00:51]}  Nc5 {[%clk 0:00:39]} 23. Qf3 {[%clk 0:00:49]}  Nxd4 {[%clk 0:00:38]} 24. cxd4 {[%clk 0:00:48]}  Ne6 {[%clk 0:00:37]} 25. Nxd5 {[%clk 0:00:49]}  Qa7 {[%clk 0:00:33]} 26. Qd3 {[%clk 0:00:32]}  Kf8 {[%clk 0:00:30]} 27. Re3 {[%clk 0:00:24]}  Kg7 {[%clk 0:00:28]} 28. Rf3 {[%clk 0:00:24]}  Rgd8 {[%clk 0:00:22]} 29. Qxb5 {[%clk 0:00:12]}  Qd7 {[%clk 0:00:20]} 30. Nxe7 {[%clk 0:00:12]}  Qxb5 {[%clk 0:00:18]} 31. Nxc8 {[%clk 0:00:08]}  Rxc8 {[%clk 0:00:19]} 32. d5 {[%clk 0:00:09]}  Nc5 {[%clk 0:00:19]} 33. d6 {[%clk 0:00:08]}  Ne6 {[%clk 0:00:18]} 34. d7 {[%clk 0:00:08]}  Rd8 {[%clk 0:00:18]} 35. Rfd3 {[%clk 0:00:09]}  Qxe5 {[%clk 0:00:18]} 36. Rd5 {[%clk 0:00:09]}  Qxb2 {[%clk 0:00:19]} 37. R5d2 {[%clk 0:00:09]}  Qc3 {[%clk 0:00:18]} 38. Kg2 {[%clk 0:00:08]}  Nc5 {[%clk 0:00:19]} 39. Kh2 {[%clk 0:00:08]}  Ne4 {[%clk 0:00:19]} 40. Rd3 {[%clk 0:00:08]}  Qf6 {[%clk 0:00:18]} 41. f3 {[%clk 0:00:07]}  Nc5 {[%clk 0:00:17]} 42. Rd5 {[%clk 0:00:08]}  Qb6 {[%clk 0:00:16]} 43. Kg2 {[%clk 0:00:08]}  Ne6 {[%clk 0:00:17]} 44. Kh3 {[%clk 0:00:07]}  Qb2 {[%clk 0:00:16]} 45. R1d2 {[%clk 0:00:07]}  Qf6 {[%clk 0:00:16]} 46. Kg2 {[%clk 0:00:07]}  Qe7 {[%clk 0:00:16]} 47. Kh3 {[%clk 0:00:05]}  Nf8 {[%clk 0:00:16]} 0-1


[Site "https://www.chess.com"]

[Event "Titled Tuesday Blitz February 21 Late 2023"]
[White "Bortnyk, Mykola"]
[Black "Rottenwohrer Suarez, Juan"]
[WhiteFideId "14120836"]
[BlackFideId "32068182"]
[WhiteElo "2425"]
[BlackElo "2265"]
[Result "1-0"]
[Round "02"]
[TimeControl "180+2"]
[Date "2023.02.21"]
[WhiteClock "0:01:43"]
[BlackClock "0:00:17"]

1. e4 {[%clk 0:03:00]}  c5 {[%clk 0:02:59]} 2. c3 {[%clk 0:02:59]}  g6 {[%clk 0:02:51]} 3. d4 {[%clk 0:02:59]}  d5 {[%clk 0:02:52]} 4. dxc5 {[%clk 0:02:58]}  dxe4 {[%clk 0:02:51]} 5. Qxd8+ {[%clk 0:02:57]}  Kxd8 {[%clk 0:02:52]} 6. Bc4 {[%clk 0:02:53]}  e6 {[%clk 0:02:47]} 7. Be3 {[%clk 0:02:50]}  Nd7 {[%clk 0:02:44]} 8. b4 {[%clk 0:02:45]}  Ne5 {[%clk 0:02:44]} 9. Bd4 {[%clk 0:02:37]}  Bg7 {[%clk 0:02:33]} 10. Nd2 {[%clk 0:02:36]}  f5 {[%clk 0:02:29]} 11. f4 {[%clk 0:02:35]}  exf3 {[%clk 0:02:28]} 12. gxf3 {[%clk 0:02:36]}  Bf6 {[%clk 0:02:11]} 13. O-O-O {[%clk 0:02:26]}  Ke7 {[%clk 0:01:52]} 14. Nh3 {[%clk 0:02:22]}  Nc6 {[%clk 0:01:51]} 15. Bxf6+ {[%clk 0:02:17]}  Nxf6 {[%clk 0:01:52]} 16. Rhe1 {[%clk 0:02:17]}  Nh5 {[%clk 0:01:34]} 17. Nb3 {[%clk 0:02:08]}  Rd8 {[%clk 0:01:23]} 18. Ng5 {[%clk 0:02:08]}  Rxd1+ {[%clk 0:01:23]} 19. Kxd1 {[%clk 0:02:09]}  Nf4 {[%clk 0:01:05]} 20. Nd4 {[%clk 0:01:56]}  Nxd4 {[%clk 0:00:59]} 21. cxd4 {[%clk 0:01:57]}  h6 {[%clk 0:00:56]} 22. Nxe6 {[%clk 0:01:57]}  Bxe6 {[%clk 0:00:57]} 23. Bxe6 {[%clk 0:01:57]}  Nxe6 {[%clk 0:00:56]} 24. d5 {[%clk 0:01:57]}  Rd8 {[%clk 0:00:55]} 25. Rxe6+ {[%clk 0:01:57]}  Kf7 {[%clk 0:00:51]} 26. Re5 {[%clk 0:01:54]}  Kf6 {[%clk 0:00:48]} 27. f4 {[%clk 0:01:54]}  g5 {[%clk 0:00:49]} 28. d6 {[%clk 0:01:55]}  gxf4 {[%clk 0:00:47]} 29. Re7 {[%clk 0:01:55]}  b6 {[%clk 0:00:29]} 30. Ke2 {[%clk 0:01:50]}  bxc5 {[%clk 0:00:29]} 31. bxc5 {[%clk 0:01:51]}  Rc8 {[%clk 0:00:21]} 32. Rc7 {[%clk 0:01:50]}  Re8+ {[%clk 0:00:18]} 33. Kf3 {[%clk 0:01:50]}  Ke6 {[%clk 0:00:18]} 34. Rxa7 {[%clk 0:01:47]}  Kd5 {[%clk 0:00:18]} 35. d7 {[%clk 0:01:43]}  Rd8 {[%clk 0:00:17]} 36. Rc7 {[%clk 0:01:43]} 1-0


[Site "https://www.chess.com"]

[Event "Titled Tuesday Blitz February 21 Late 2023"]
[White "Zarubitski, Viachaslau"]
[Black "sissahungrychess"]
[WhiteFideId "13509373"]
[WhiteElo "2423"]
[BlackElo "2453"]
[Result "0-1"]
[Round "02"]
[TimeControl "180+2"]
[Date "2023.02.21"]
[WhiteClock "0:00:04"]
[BlackClock "0:00:19"]

1. a3 {[%clk 0:03:00]}  d5 {[%clk 0:02:59]} 2. d4 {[%clk 0:03:00]}  Nf6 {[%clk 0:02:59]} 3. Nf3 {[%clk 0:03:00]}  g6 {[%clk 0:02:56]} 4. c4 {[%clk 0:02:54]}  c6 {[%clk 0:02:54]} 5. cxd5 {[%clk 0:02:52]}  cxd5 {[%clk 0:02:52]} 6. Bf4 {[%clk 0:02:52]}  Bg7 {[%clk 0:02:52]} 7. e3 {[%clk 0:02:52]}  O-O {[%clk 0:02:53]} 8. Nc3 {[%clk 0:02:52]}  Bf5 {[%clk 0:02:50]} 9. Qb3 {[%clk 0:02:51]}  Bc8 {[%clk 0:02:48]} 10. Be2 {[%clk 0:02:50]}  Nc6 {[%clk 0:02:48]} 11. O-O {[%clk 0:02:50]}  Na5 {[%clk 0:02:49]} 12. Qd1 {[%clk 0:02:43]}  Bf5 {[%clk 0:02:41]} 13. Rc1 {[%clk 0:02:42]}  Rc8 {[%clk 0:02:41]} 14. Ne5 {[%clk 0:02:40]}  Nd7 {[%clk 0:02:22]} 15. Bf3 {[%clk 0:02:00]}  Nb6 {[%clk 0:02:14]} 16. b4 {[%clk 0:01:56]}  Nac4 {[%clk 0:02:07]} 17. Nxc4 {[%clk 0:01:56]}  Rxc4 {[%clk 0:02:03]} 18. Be2 {[%clk 0:01:47]}  Rc8 {[%clk 0:02:02]} 19. Qb3 {[%clk 0:01:41]}  Qd7 {[%clk 0:01:52]} 20. a4 {[%clk 0:01:06]}  Rfd8 {[%clk 0:01:32]} 21. Bb5 {[%clk 0:01:04]}  Qe6 {[%clk 0:01:27]} 22. a5 {[%clk 0:00:53]}  Nc4 {[%clk 0:01:23]} 23. Rfd1 {[%clk 0:00:43]}  Nd6 {[%clk 0:01:07]} 24. Be2 {[%clk 0:00:33]}  Nc4 {[%clk 0:00:23]} 25. Nxd5 {[%clk 0:00:27]}  Qxd5 {[%clk 0:00:23]} 26. Bxc4 {[%clk 0:00:24]}  Qd7 {[%clk 0:00:21]} 27. Bxf7+ {[%clk 0:00:24]}  Kf8 {[%clk 0:00:21]} 28. Bc4 {[%clk 0:00:20]}  Be4 {[%clk 0:00:14]} 29. Be2 {[%clk 0:00:20]}  Rxc1 {[%clk 0:00:13]} 30. Rxc1 {[%clk 0:00:21]}  Rc8 {[%clk 0:00:14]} 31. Rxc8+ {[%clk 0:00:20]}  Qxc8 {[%clk 0:00:15]} 32. f3 {[%clk 0:00:21]}  Qc1+ {[%clk 0:00:11]} 33. Kf2 {[%clk 0:00:21]}  Bc6 {[%clk 0:00:10]} 34. d5 {[%clk 0:00:19]}  Bd7 {[%clk 0:00:09]} 35. Qc4 {[%clk 0:00:18]}  Qb2 {[%clk 0:00:06]} 36. d6 {[%clk 0:00:10]}  a6 {[%clk 0:00:03]} 37. dxe7+ {[%clk 0:00:10]}  Kxe7 {[%clk 0:00:04]} 38. Qc5+ {[%clk 0:00:09]}  Ke8 {[%clk 0:00:03]} 39. Bg5 {[%clk 0:00:08]}  Bf8 {[%clk 0:00:02]} 40. Qd4 {[%clk 0:00:04]}  Qxd4 {[%clk 0:00:02]} 41. exd4 {[%clk 0:00:05]}  Bxb4 {[%clk 0:00:01]} 42. Ke3 {[%clk 0:00:05]}  Bxa5 {[%clk 0:00:02]} 43. Bc4 {[%clk 0:00:05]}  Bc7 {[%clk 0:00:02]} 44. Bg8 {[%clk 0:00:05]}  Kf8 {[%clk 0:00:02]} 45. Bd5 {[%clk 0:00:04]}  Bc6 {[%clk 0:00:01]} 46. Bxc6 {[%clk 0:00:05]}  bxc6 {[%clk 0:00:02]} 47. h4 {[%clk 0:00:05]}  a5 {[%clk 0:00:02]} 48. Kd3 {[%clk 0:00:06]}  Bd6 {[%clk 0:00:02]} 49. Kc4 {[%clk 0:00:07]}  Kf7 {[%clk 0:00:02]} 50. Bd2 {[%clk 0:00:07]}  Ke6 {[%clk 0:00:03]} 51. Bxa5 {[%clk 0:00:07]}  Bg3 {[%clk 0:00:03]} 52. Kc5 {[%clk 0:00:06]}  Kd7 {[%clk 0:00:02]} 53. d5 {[%clk 0:00:06]}  cxd5 {[%clk 0:00:02]} 54. Kxd5 {[%clk 0:00:07]}  Bxh4 {[%clk 0:00:02]} 55. Bd2 {[%clk 0:00:07]}  Ke7 {[%clk 0:00:02]} 56. Ke5 {[%clk 0:00:07]}  Kf7 {[%clk 0:00:03]} 57. Bb4 {[%clk 0:00:06]}  Bf6+ {[%clk 0:00:03]} 58. Ke4 {[%clk 0:00:07]}  Bg7 {[%clk 0:00:03]} 59. f4 {[%clk 0:00:07]}  Bf6 {[%clk 0:00:03]} 60. Bc5 {[%clk 0:00:07]}  Bg7 {[%clk 0:00:04]} 61. Kd5 {[%clk 0:00:07]}  Bf6 {[%clk 0:00:04]} 62. Bd6 {[%clk 0:00:06]}  Bg7 {[%clk 0:00:05]} 63. Kc6 {[%clk 0:00:05]}  Bh6 {[%clk 0:00:05]} 64. Kd7 {[%clk 0:00:06]}  Bg7 {[%clk 0:00:05]} 65. Be5 {[%clk 0:00:06]}  Bh6 {[%clk 0:00:06]} 66. g4 {[%clk 0:00:06]}  Bf8 {[%clk 0:00:06]} 67. Bd4 {[%clk 0:00:02]}  Bb4 {[%clk 0:00:06]} 68. Be5 {[%clk 0:00:02]}  Bd2 {[%clk 0:00:07]} 69. Kc6 {[%clk 0:00:02]}  Bc1 {[%clk 0:00:08]} 70. Kd5 {[%clk 0:00:03]}  Bd2 {[%clk 0:00:08]} 71. Ke4 {[%clk 0:00:03]}  Ba5 {[%clk 0:00:09]} 72. Kf3 {[%clk 0:00:04]}  Bd8 {[%clk 0:00:09]} 73. Kg3 {[%clk 0:00:04]}  Be7 {[%clk 0:00:10]} 74. Kf3 {[%clk 0:00:04]}  Bd8 {[%clk 0:00:11]} 75. Ke3 {[%clk 0:00:05]}  Be7 {[%clk 0:00:11]} 76. Kd4 {[%clk 0:00:05]}  Bd8 {[%clk 0:00:12]} 77. Ke4 {[%clk 0:00:06]}  Ba5 {[%clk 0:00:13]} 78. Kd5 {[%clk 0:00:06]}  Bd2 {[%clk 0:00:12]} 79. Bd6 {[%clk 0:00:06]}  Bc1 {[%clk 0:00:13]} 80. Ke4 {[%clk 0:00:06]}  Bd2 {[%clk 0:00:13]} 81. Kf3 {[%clk 0:00:06]}  Bc1 {[%clk 0:00:13]} 82. Kg3 {[%clk 0:00:07]}  Bb2 {[%clk 0:00:14]} 83. Kh4 {[%clk 0:00:07]}  Bf6+ {[%clk 0:00:14]} 84. g5 {[%clk 0:00:07]}  Bc3 {[%clk 0:00:14]} 85. Kg4 {[%clk 0:00:08]}  Bd2 {[%clk 0:00:15]} 86. Kf3 {[%clk 0:00:09]}  Bc3 {[%clk 0:00:15]} 87. Ke4 {[%clk 0:00:09]}  Bb2 {[%clk 0:00:16]} 88. Be5 {[%clk 0:00:10]}  Bc1 {[%clk 0:00:16]} 89. Kd5 {[%clk 0:00:10]}  Ba3 {[%clk 0:00:17]} 90. Kc6 {[%clk 0:00:10]}  Be7 {[%clk 0:00:18]} 91. Kd7 {[%clk 0:00:10]}  Bb4 {[%clk 0:00:18]} 92. Bf6 {[%clk 0:00:09]}  Ba3 {[%clk 0:00:18]} 93. Be5 {[%clk 0:00:09]}  Bc1 {[%clk 0:00:18]} 94. Kc6 {[%clk 0:00:08]}  Ke6 {[%clk 0:00:18]} 95. Kc5 {[%clk 0:00:04]}  Kf5 {[%clk 0:00:19]} 0-1


[Site "https://www.chess.com"]

[Event "Titled Tuesday Blitz February 21 Late 2023"]
[White "Timmermans, Mark"]
[Black "Coelho, Ramyres Santana"]
[WhiteFideId "1026399"]
[BlackFideId "2120690"]
[WhiteElo "2392"]
[BlackElo "1981"]
[Result "1-0"]
[Round "02"]
[TimeControl "180+2"]
[Date "2023.02.21"]
[WhiteClock "0:02:20"]
[BlackClock "0:02:07"]

1. e4 {[%clk 0:02:59]}  c5 {[%clk 0:02:59]} 2. Nf3 {[%clk 0:02:59]}  d6 {[%clk 0:02:59]} 3. d4 {[%clk 0:02:59]}  cxd4 {[%clk 0:03:00]} 4. Nxd4 {[%clk 0:03:00]}  Nf6 {[%clk 0:03:01]} 5. Nc3 {[%clk 0:03:00]}  a6 {[%clk 0:03:01]} 6. g3 {[%clk 0:02:59]}  e6 {[%clk 0:03:01]} 7. Bg2 {[%clk 0:02:58]}  Be7 {[%clk 0:02:52]} 8. O-O {[%clk 0:02:50]}  O-O {[%clk 0:02:51]} 9. Be3 {[%clk 0:02:49]}  Qc7 {[%clk 0:02:51]} 10. a4 {[%clk 0:02:47]}  Nc6 {[%clk 0:02:51]} 11. Qe2 {[%clk 0:02:33]}  b6 {[%clk 0:02:44]} 12. Nxc6 {[%clk 0:02:30]}  Qxc6 {[%clk 0:02:41]} 13. e5 {[%clk 0:02:29]}  Nd5 {[%clk 0:02:40]} 14. Nxd5 {[%clk 0:02:28]}  exd5 {[%clk 0:02:41]} 15. Rfd1 {[%clk 0:02:26]}  Be6 {[%clk 0:02:39]} 16. c4 {[%clk 0:02:21]}  Qxc4 {[%clk 0:02:23]} 17. Qxc4 {[%clk 0:02:21]}  dxc4 {[%clk 0:02:24]} 18. Bxa8 {[%clk 0:02:22]}  Rxa8 {[%clk 0:02:25]} 19. exd6 {[%clk 0:02:22]}  Bf8 {[%clk 0:02:24]} 20. Bxb6 {[%clk 0:02:22]}  a5 {[%clk 0:02:17]} 21. d7 {[%clk 0:02:21]}  Bxd7 {[%clk 0:02:07]} 22. Rxd7 {[%clk 0:02:20]} 1-0


[Site "https://www.chess.com"]

[Event "Titled Tuesday Blitz February 21 Late 2023"]
[White "Koziorowicz, Michal"]
[Black "Kielinkei"]
[WhiteFideId "21809194"]
[WhiteElo "2307"]
[BlackElo "2387"]
[Result "1-0"]
[Round "02"]
[TimeControl "180+2"]
[Date "2023.02.21"]
[WhiteClock "0:00:19"]
[BlackClock "0:00:05"]

1. g4 {[%clk 0:03:00]}  d5 {[%clk 0:02:57]} 2. Bg2 {[%clk 0:03:01]}  c6 {[%clk 0:02:53]} 3. c4 {[%clk 0:03:01]}  e6 {[%clk 0:02:50]} 4. Nf3 {[%clk 0:03:00]}  h5 {[%clk 0:02:48]} 5. g5 {[%clk 0:02:58]}  Ne7 {[%clk 0:02:46]} 6. d4 {[%clk 0:02:54]}  Ng6 {[%clk 0:02:46]} 7. h4 {[%clk 0:02:53]}  Bd6 {[%clk 0:02:45]} 8. Nc3 {[%clk 0:02:51]}  Nd7 {[%clk 0:02:34]} 9. e4 {[%clk 0:02:51]}  dxe4 {[%clk 0:02:31]} 10. Nxe4 {[%clk 0:02:52]}  Bb4+ {[%clk 0:02:27]} 11. Bd2 {[%clk 0:02:50]}  Bxd2+ {[%clk 0:02:27]} 12. Qxd2 {[%clk 0:02:50]}  Qc7 {[%clk 0:02:27]} 13. O-O {[%clk 0:02:49]}  Nf4 {[%clk 0:02:23]} 14. Ne5 {[%clk 0:02:43]}  Nxg2 {[%clk 0:02:18]} 15. Kxg2 {[%clk 0:02:31]}  O-O {[%clk 0:01:56]} 16. Nxd7 {[%clk 0:02:26]}  Bxd7 {[%clk 0:01:55]} 17. Qe2 {[%clk 0:02:12]}  Qf4 {[%clk 0:01:45]} 18. Rae1 {[%clk 0:02:04]}  Qxh4 {[%clk 0:01:32]} 19. Rh1 {[%clk 0:02:04]}  Qg4+ {[%clk 0:01:31]} 20. Qxg4 {[%clk 0:02:04]}  hxg4 {[%clk 0:01:32]} 21. Kg3 {[%clk 0:02:05]}  f5 {[%clk 0:01:15]} 22. Nc5 {[%clk 0:01:59]}  Bc8 {[%clk 0:01:09]} 23. Kf4 {[%clk 0:01:58]}  b6 {[%clk 0:01:06]} 24. Nd3 {[%clk 0:01:58]}  Rd8 {[%clk 0:00:56]} 25. Ke5 {[%clk 0:01:41]}  c5 {[%clk 0:00:47]} 26. d5 {[%clk 0:01:36]}  exd5 {[%clk 0:00:46]} 27. cxd5 {[%clk 0:01:37]}  Re8+ {[%clk 0:00:42]} 28. Kd6 {[%clk 0:01:32]}  Bb7 {[%clk 0:00:38]} 29. Rxe8+ {[%clk 0:01:03]}  Rxe8 {[%clk 0:00:39]} 30. Nf4 {[%clk 0:01:03]}  Kf7 {[%clk 0:00:31]} 31. Kc7 {[%clk 0:00:36]}  Re7+ {[%clk 0:00:25]} 32. Kd6 {[%clk 0:00:31]}  Re4 {[%clk 0:00:23]} 33. Ne6 {[%clk 0:00:28]}  Bc8 {[%clk 0:00:15]} 34. Nd8+ {[%clk 0:00:27]}  Kg6 {[%clk 0:00:14]} 35. Kc7 {[%clk 0:00:22]}  Ba6 {[%clk 0:00:13]} 36. d6 {[%clk 0:00:20]}  Bb5 {[%clk 0:00:13]} 37. Rd1 {[%clk 0:00:17]}  f4 {[%clk 0:00:10]} 38. Nc6 {[%clk 0:00:17]}  Re8 {[%clk 0:00:04]} 39. d7 {[%clk 0:00:17]}  Rh8 {[%clk 0:00:05]} 40. d8=Q {[%clk 0:00:17]}  Rxd8 {[%clk 0:00:05]} 41. Rxd8 {[%clk 0:00:18]}  g3 {[%clk 0:00:04]} 42. fxg3 {[%clk 0:00:18]}  f3 {[%clk 0:00:04]} 43. Ne5+ {[%clk 0:00:17]}  Kxg5 {[%clk 0:00:04]} 44. Nxf3+ {[%clk 0:00:18]}  Kg4 {[%clk 0:00:05]} 45. Ne5+ {[%clk 0:00:18]}  Kxg3 {[%clk 0:00:05]} 46. Rg8 {[%clk 0:00:19]} 1-0


[Site "https://www.chess.com"]